Cogmind - Beta 13 *** ADVENTURER MODE // 2024.06.24 @ 17:39:11 Player: AnotherZach Result: Destroyed by G5-5VG(R) with Subdweller Machine Gun Performance ------------- Evolutions (0) 0 Regions Visited (2) 400 Robots Destroyed (29) 145 Value Destroyed (725) 725 Prototype IDs (0) 0 Alien Tech Used (0) 0 Bonus (0) 0 TOTAL SCORE: 1270 Bonus ------- None Cogmind --------- Core Integrity 0/250 Matter 282/300 Energy 233/250 System Corruption 0% Temperature Cool (0) Movement Rolling (120) Ox2 Location -10/Subcaves Parts ------- > --- POWER (1) -------- Ion Engine > --- PROPULSION (2) --- Wheel Compact Wheel > --- UTILITY (2) ------ High-capacity Storage Unit Makeshift Light Armor Plating > --- WEAPON (2) ------- EM Pulse Gun Assault Rifle > --- INVENTORY (20) --- Ion Engine Ion Engine Light Treads Heat Sink Heat Sink Small Storage Unit Large Matter Pod (150) Structural Scanner Visual Processing Unit Signal Interpreter Targeting Computer Beam Cannon Assault Rifle Assault Rifle Subdweller Machine Gun Grenade Launcher Mining Laser Mining Claw Peak State ------------ > --- POWER ------------ Ion Engine > --- PROPULSION ------- Wheel Wheel > --- UTILITY ---------- High-capacity Storage Unit Makeshift Light Armor Plating > --- WEAPON ----------- EM Pulse Gun Riot Gun > --- INVENTORY -------- Ion Engine Ion Engine Light Treads Compact Wheel Heat Sink Heat Sink Small Storage Unit Large Matter Pod Structural Scanner Visual Processing Unit Signal Interpreter Targeting Computer Beam Cannon Assault Rifle Assault Rifle Assault Rifle Grenade Launcher Mining Laser Mining Claw [Rating: 14] Favorites ----------- Power Ion Engine Engine Ion Engine Propulsion Wheel Treads Light Treads Wheel Wheel Utility High-capacity Storage Unit Device Structural Scanner Storage High-capacity Storage Unit Protection Makeshift Light Armor Plating Weapon EM Pulse Gun Energy Gun EM Pulse Gun Ballistic Gun Light Assault Rifle Slashing Weapon Mining Claw Build | -11 -10 -10 ------- Run | Yrd Mat Sub Slots Evolved . | . . . Power . | . . . Propulsion . | . . . Utility . | . . . Weapon . | . . . Parts Attached 29 | 8 14 7 Power 5 | 1 3 1 Engine 5 | 1 3 1 Core . | . . . Reactor . | . . . Propulsion 8 | 3 4 1 Treads 1 | 1 . . Leg . | . . . Wheel 7 | 2 4 1 Hover . | . . . Flight . | . . . Utility 5 | 2 2 1 Device 2 | 1 1 . Storage 2 | 1 1 . Processor . | . . . Hackware . | . . . Protection 1 | . . 1 Artifact . | . . . Weapon 11 | 2 5 4 Energy Gun 7 | 1 4 2 Energy Cannon . | . . . Ballistic Gun 3 | 1 1 1 Ballistic Cannon . | . . . Launcher . | . . . Special Weapon . | . . . Impact Weapon . | . . . Slashing Weapon 1 | . . 1 Piercing Weapon . | . . . Special Melee Weapon . | . . . Unidentified Prototypes . | . . . Parts Lost 8 | . 6 2 Power 1 | . 1 . Propulsion 3 | . 2 1 Utility 1 | . 1 . Weapon 3 | . 2 1 Highest Loss Streak 3 | . 3 2 To Critical Strikes . | . . . Average Slot Usage (%) 94 | . 91 99 Engine 13 | . 13 14 Wheel 27 | . 27 28 Device 9 | . 9 8 Storage 14 | . 14 14 Protection 1 | . . 5 Energy Gun 15 | . 12 20 Ballistic Gun 9 | . 12 4 Slashing Weapon 1 | . . 2 Naked Turns . | . . . Heaviest Build 54 | 12 50 54 Greatest Support 32 | 32 32 26 Greatest Overweight (x) 4 | . 4 2 Average Overweight (x) 1 | . 1 2 Largest Inventory Capacity 20 | 8 20 20 Average Capacity 18 | 7 19 20 Most Carried 20 | 8 19 20 Average Carried 15 | 3 14 19 Final Capacity 20 | 8 20 20 Final Carried 19 | 8 19 18 Class Distribution -------------------- 100% | Mutant Dominant Class ---------------- Mutant | -10/Materials Mutant | -10/Subcaves Resources | -11 -10 -10 ----------- Run | Yrd Mat Sub Matter Collected 681 | 218 377 86 Remotely . | . . . Salvage Created 1218 | 95 787 336 Parts 66 | 10 40 16 Haulers Intercepted 1 | . 1 . Recyclers Shooed 1 | . 1 . Parts Field Recycled . | . . . Retrieved Matter . | . . . Parts Self-Destructed 7 | . . 7 Prevented 3 | . . 3 Kills | -11 -10 -10 ------- Run | Yrd Mat Sub Combat Hostiles Destroyed 17 | . 10 7 Guns 15 | . 9 6 AOE 1 | . 1 . Classes Destroyed 9 | 2 4 3 Worker 2 | . 2 . Tunneler 2 | 2 . . Hauler 1 | . 1 . Recycler 4 | 1 3 . Watcher 3 | . 3 . Swarmer 1 | . . 1 Grunt 12 | . 10 2 Sentry 1 | . . 1 Subdweller 3 | . . 3 Best Kill Streak 4 | 3 4 2 Combat Bots Only 2 | . 2 2 Max Kills in Single Turn 2 | 1 2 1 Gunslinging . | . . . Exploded 1 | . 1 . Melee . | . . . Uniques/NPCs Destroyed . | . . . Combat | -11 -10 -10 -------- Run | Yrd Mat Sub Hostile Shots Fired 124 | . 83 41 Missed 25 | . 14 11 Damage Taken 1110 | . 698 412 Core 259 | . 124 135 Absorbed by Shields . | . . . Ignored by Resistances 327 | . 210 117 Regen/Repaired (Parts) 41 | . 41 . Core Remaining (%) 100 | 100 . . Volleys Fired 115 | 5 78 32 Largest 2 | 2 2 2 Hottest 90 | 60 80 90 Shots Fired 192 | 10 128 54 Gun 192 | 10 128 54 Cannon . | . . . Launcher . | . . . Special . | . . . Kinetic 78 | 5 61 12 Thermal 13 | . 13 . Explosive . | . . . Electromagnetic 101 | 5 54 42 Robot Hit Streak 36 | 4 36 33 Robot Miss Streak 2 | 1 1 2 Penetration Max . | . . . Secondary Targets 3 | . 3 . Max Gunslinging Chain 1 | . 1 . Shots Hit Robots 155 | 6 114 35 Core Hits 57 | 4 40 13 Critical Kills . | . . . Critical Parts Destroyed 1 | . 1 . Critical Strikes 1 | . 1 . Destroy 1 | . 1 . Melee Attacks 1 | . . 1 Impact . | . . . Slashing 1 | . . 1 Piercing . | . . . Sneak Attacks . | . . . Combat Hostiles . | . . . Follow-up Attacks . | . . . Damage Inflicted 2171 | 96 1495 580 Guns 1773 | 71 1179 523 Cannons . | . . . Explosions 398 | 25 316 57 Melee . | . . . Ramming . | . . . Kinetic 525 | 28 424 73 Thermal 531 | 25 449 57 Explosive . | . . . Electromagnetic 1115 | 43 622 450 Impact . | . . . Slashing . | . . . Piercing . | . . . Highest Corruption . | . . . Average Corruption . | . . . Corruption Purged . | . . . Corruption Blocked . | . . . Overload Shots . | . . . Overflow Damage 16 | . 16 . Projectiles . | . . . Explosions 16 | . 16 . Melee . | . . . Knockbacks . | . . . Impact . | . . . Kinetic . | . . . Secondary . | . . . Self-Inflicted Damage 70 | . 70 . Shots 3 | . 3 . Rammed . | . . . Targets Rammed . | . . . Kicked . | . . . Crushed . | . . . Highest Temperature 221 | 40 221 4 Average Temperature 76 | 19 81 4 Received Heat Transfer 537 | . 456 81 Siege Activations . | . . . Robots Corrupted 1 | . . 1 Combat Hostiles 1 | . . 1 Parts Fried 9 | . 1 8 Impact Corruptions . | . . . Robots Melted . | . . . Combat Hostiles . | . . . Parts Melted 1 | . 1 . Heat Transferred 700 | 50 600 50 Parts Sabotaged . | . . . Parts Stolen . | . . . Parts Stripped . | . . . Power Chain Reactions 6 | 1 4 1 Alert | -11 -10 -10 ------- Run | Yrd Mat Sub Peak Influence 173 | 15 173 . Initial 8 | . 8 . Average 55 | 4 59 . Maximum Alert Level . | . . . Low Security (%) 100 | 100 100 . Level 1 . | . . . Level 2 . | . . . Level 3 . | . . . Level 4 . | . . . Level 5 . | . . . High Security . | . . . Max Security . | . . . Squads Dispatched 3 | . 3 . Investigation 3 | . 3 . Extermination . | . . . Reinforcement . | . . . Assault . | . . . Garrison . | . . . Intercept . | . . . Searches Triggered . | . . . Construction Impeded . | . . . Haulers Reinforced . | . . . Active Scanning Responses . | . . . Cargo Convoy Interrupts . | . . . Stealth | -11 -10 -10 --------- Run | Yrd Mat Sub Distress Signals 2 | . 2 . Communications Jammed . | . . . Distress Signals . | . . . Times Spotted 27 | . 17 10 Peak Tracking Total 3 | . 3 2 Tactical Retreats 1 | . . 1 Traps | -11 -10 -10 ------- Run | Yrd Mat Sub Traps Triggered 4 | . 4 . Indirectly . | . . . Trap Hack Attempts . | . . . Triggered . | . . . Disarmed . | . . . Reprogrammed . | . . . Reused . | . . . Traps Extracted . | . . . Installed . | . . . Triggered . | . . . Machines | -11 -10 -10 ---------- Run | Yrd Mat Sub Machines Disabled . | . . . Max in Single Turn . | . . . Machines Repaired . | . . . Machines Dismantled . | . . . Machines Sabotaged . | . . . Overloaded Fab Kills . | . . . Hacking | -11 -10 -10 --------- Run | Yrd Mat Sub Machines Accessed 11 | . 10 1 Terminals 8 | . 8 . Fabricators . | . . . Repair Stations 1 | . 1 . Recycling Units 1 | . 1 . Scanalyzers . | . . . Garrison Access . | . . . Total Hacks 32 | . 30 2 Successful 21 | . 19 2 Failed 11 | . 11 . Catastrophic . | . . . Database Lockouts . | . . . Manual 30 | . 23 7 Terminals 25 | . 25 . Fabricators . | . . . Repair Stations 2 | . 2 . Recycling Units 3 | . 3 . Scanalyzers . | . . . Garrison Access . | . . . Terminal Hacks 11 | . 9 2 Record 2 | . . 2 Robot Analysis 5 | . 5 . Unreport Threat 2 | . 2 . Locate Traps 1 | . 1 . Dispatch Records 1 | . 1 . Fabricator Hacks . | . . . Repair Station Hacks 2 | . 2 . Scan Component 1 | . 1 . Repair 1 | . 1 . Recycling Unit Hacks 1 | . 1 . Retrieve Components 1 | . 1 . Scanalyzer . | . . . Garrison Access Hacks . | . . . Unauthorized Hacks 7 | . 7 . Terminals 6 | . 6 . Track 2 | . 2 . Botnet 4 | . 4 . Fabricators . | . . . Repair Stations . | . . . Recycling Units 1 | . 1 . Reject 1 | . 1 . Scanalyzers . | . . . Garrison Access . | . . . Data Cores Recovered . | . . . Used . | . . . Hacking Detections 7 | . 7 . Full Trace Events 2 | . 2 . Feedback Events . | . . . Feedback Blocked . | . . . Robot Schematics Acquired . | . . . Robots Built . | . . . Authchips . | . . . Time . | . . . Total Robot Build Rating . | . . . Part Schematics Acquired . | . . . Parts Built . | . . . Authchips . | . . . Time . | . . . Total Part Build Rating . | . . . Parts Repaired 1 | . 1 . Time 26 | . 26 . Parts Recycled . | . . . Recycled Matter . | . . . Retrieved Matter . | . . . Retrieved Components 10 | . 10 . Parts Scanalyzed . | . . . Part Schematics Acquired . | . . . Parts Damaged . | . . . Bothacking | -11 -10 -10 ------------ Run | Yrd Mat Sub Used RIF Installer . | . . . Robots Hacked . | . . . Non-combat . | . . . Combat . | . . . Robot Hacks Applied . | . . . Relay Couplers Released . | . . . Fabnet Peak Effective % . | . . . Robots Rewired . | . . . Allies Hacked . | . . . Hacks Repelled . | . . . Allies | -11 -10 -10 -------- Run | Yrd Mat Sub Total Allies . | . . . Largest Group . | . . . Highest-Rated Group . | . . . Highest-Rated Ally . | . . . Total Orders . | . . . Ally Attacks . | . . . Total Damage . | . . . Kills . | . . . Allies Corrupted . | . . . Allies Melted . | . . . Intel | -11 -10 -10 ------- Run | Yrd Mat Sub Robot Analysis Total 5 | . 5 . Derelict Logs Recovered 1 | . . 1 Drone Launches . | . . . Drone Recoveries . | . . . Exploration | -11 -10 -10 ------------- Run | Yrd Mat Sub Turns Passed 1861 | 88 1144 629 Spaces Moved 1283 | 54 779 450 Core 5 | 5 . . Treads . | . . . Legs . | . . . Wheels 1278 | 49 779 450 Hover . | . . . Flight . | . . . Fastest Speed 50 | 50 90 110 Average Speed 109 | 95 109 111 Slowest Speed 140 | 100 140 120 Overloaded Moves . | . . . Propulsion Burnouts . | . . . Robots Hopped . | . . . Cave-ins Triggered . | . . . Exploration Rate (%) 45 | 4 97 35 Regions Visited 2 Branch Regions 1 Pre-discovered Areas . | . . . Known Exits Taken . | . . . Unknown Exits Taken 2 | 1 1 . Scrap Searched 1 | . . 1 Spaces Dug . | . . . Terrain Destroyed 23 | 3 13 7 Melee . | . . . Projectile . | . . . AOE 23 | 3 13 7 Terrain Rammed . | . . . Walls Destroyed . | . . . Machines Disabled . | . . . Actions | -11 -10 -10 --------- Run | Yrd Mat Sub Total 1562 | 81 958 523 Wait 84 | . 58 26 Move 1281 | 53 778 450 Hop . | . . . Pick Up 43 | 15 24 4 Fast Attach . | . . . Attach 18 | 7 9 2 Detach . | . . . Swap 11 | 1 5 5 Drop 9 | . 6 3 Fire 115 | 5 78 32 Melee 1 | . . 1 Ram . | . . . Kick . | . . . Crush . | . . . Escape Stasis . | . . . Rewire . | . . . Trap . | . . . Miscellaneous . | . . . Route ------- -11/Scrapyard -10/Materials (discovered 6 exits: [*Mat x3] / [*Min x2] / *Sub) -10/Subcaves History --------- Turn | Location | Event 12 | -11/Scrapyard | Discovered new exit (range 15) 89 | -11/Scrapyard | Entered Materials 251 | -10/Materials | Lost 3 parts (1p2w) 263 | -10/Materials | Discovered new exit (range 16) 300 | -10/Materials | Build established: Mutant 376 | -10/Materials | Lost 3 parts (2n1u) 413 | -10/Materials | Discovered new exit (range 8) 491 | -10/Materials | Discovered new exit (range 5) 624 | -10/Materials | Discovered new exit (range 9) 859 | -10/Materials | Discovered new exit (range 16) 905 | -10/Materials | Repaired EM Pulse Gun 1227 | -10/Materials | Discovered new exit (range 6) 1233 | -10/Materials | Entered Subcaves 1241 | -10/Subcaves | Learned Materials stockpile data 1285 | -10/Subcaves | Core integrity fell below 50% 1337 | -10/Subcaves | Shifting Twisted Machinery released Shrapnel Trap 1346 | -10/Subcaves | Shifting Twisted Machinery released Mak. Light Armor Plating 1374 | -10/Subcaves | Visited Clippyterm 1627 | -10/Subcaves | A swath of the cavern ceiling suddenly collapsed 1725 | -10/Subcaves | Core integrity fell below 20% 1862 | -10/Subcaves | Destroyed by G5-5VG(R) with Subdweller Machine Gun Last Messages --------------- 01599_ Particle Gun self-destruct mechanism malfunctions. A swath of the cavern ceiling suddenly collapses. 01638_ Chain reaction triggered in Sub. Power Source. 01650_ Sub. Monowheel fried. 01650_ 3I-LP2(R) destroyed. 01662_ Acquired 20 matter. 01700_ Subatomizers dissect the Corrupted Aluminum Leg. 01728_ Riot Gun destroyed. 01729_ Disposable Heat Sink fried. 01729_ Sub. Optics fried. 01729_ Sub. Power Source fried. 01729_ FN-IJB(R) destroyed. 01735_ Wheel destroyed. 01736_ 71-1YB(R) destroyed. 01756_ Acquired 21 matter. 01760_ Acquired Sub. Machine Gun. Map ----- +----------------------------------------------------+ | ### #####??######???????????????????????? | | #### ##????#""###???????????????????????? | | ##### ####?##"####???????????????????????? | | ##?### ###?# """ ????????????????????????? | | ####### ####""""?????????????????????????? | | ####### ### "#??????????????????????????? | | ## # #??????????????????????????? | | ""#??????????????????????????? | | ""#???###????????????????????? | | #??##" ????????????????????? | | * ##??#" "????????????????????? | | ##??? ????????????????????? | | ### ## ###???# ????????????????????? | | ## ##### #####????# #???###??????????????? | | ######### ##??????## #??## #??????????????? | | ######??############# #### ##?????????????? | | ##########"########## ## #?????????????? | | ######### # ## #??????????????? | | ## # # " ##?????????????? | | & #?????????????? | | ## ### R%& #?????????????? | | # ## ######## ## ##?????????????? | | ####### #######?###### ###??????????????? | | ###### #########????# ##???????????????? | | ##??###% ### ######## ###??????????????? | | #??## & ## #######@ ##??????????????? | | #??## ### ##??????????????? | | ##?### # ## ##??????????????? | | ##?## ## ##??????????????? | | #?### #### #### ##?????????????? | | #?### #### #### #?????????????? | | ###??#### ##### ### #?????????????? | | ####??#### #### ## ##?????????????? | | ##??????## ## ### ##??????????????? | | ######??### ## ########???????????????? | | ################ #######????????????????? | | "" ########### #######???????????????? | | " ####?????????????? | | ### ###????????????? | | ### % ### ##????????????? | | ## ## ###### ####????????????? | | ## ## ###### ####????????????? | | ### ### #######?## ###????????????? | | #### #### ######### ##????????????? | | ?##### ## ###???## ##????????????? | | ??### # ###??# ##????????????? | | ???### ###?## ###????????????? | | ###### # ## ##??## ###????????????? | | ###### ## #???## #??????????????? | | ## ##### ##????## ###??????????????? | +----------------------------------------------------+ Best States ------------- Heat Dissipation 25 Energy Generation 10 Energy Capacity 250 Matter Stores 300 Matter Capacity 300 Sight Range 16 Terrain Scan Density 10 Armor Coverage 100 Resistance: KI 20 Resistance: TH 20 Resistance: EX 20 Resistance: EM 20 Resistance: I 20 Resistance: S 20 Resistance: P 20 Evasion (%) 42 Recoil Reduction 1 Offensive Hacking 10 Item Schematics ----------------- None Robot Schematics ------------------ None Fabricated ------------ Nothing Alien Tech Used ----------------- None Achievements -------------- None Challenges ------------ None Game ------ Seed RagnarokLegShockpuncher Manual? 0 Play Time 00:20:30 Cumulative 376.4 hours Start 2024.06.24 @ 17:23:29 End 2024.06.24 @ 17:39:11 Sessions 1 Manual Loads 0 Difficulty Adventurer Special Mode None Game No. 66 Rogue 0 Adventurer 66 Explorer 0 Win Type - Total 3 Types 2/0/0/1/0/0/0/0/0 Lore% 54 Gallery% 76 Achievement% 64 Wizard Run 0 Options --------- Layout 2 ASCII 0 Keyboard 0 Movement Mouse Keybinds 0 Fullscreen 1 Font 24/Smallcaps Map View 50x49 Zoom Use 5% Tactical HUD 1 Map Filters NONE Filters NONE Steam 1 RUN: 98afd1ac-d360-4311-99cb-a1e1d8d0cd72